bitfinex-derivatives/quotes_SOLF0:USTF0_20251018
["timestamp","ask_amount","ask_price","bid_price","bid_amount"]
[1760750073398,2.91,183.72,183.67,4.8983]
[1760750073603,4.78815718,183.73,183.67,7.6183]
[1760750075003,1.87815718,183.71,183.63,2.72]
[1760750075199,16.0318103,183.79,183.63,2.72]
[1760750075200,1.87815718,183.69,183.63,2.72]
[1760750076404,2.91,183.66,183.6,2.72]
[1760750076607,1.87815718,183.73,183.65,2.72]
[1760750076806,2.91,183.72,183.65,2.72]
[1760750077307,7.8072,183.72,183.65,2.72]
[1760750077904,2.91,183.72,183.65,7.6187]
[1760750082704,4.78815718,183.72,183.65,7.6187]
[1760750085706,9.68535718,183.72,183.65,2.72]
[1760750087212,2.74,183.73,183.66,2.66]
[1760750088012,7.6369,183.73,183.66,2.66]
[1760750098910,7.6369,183.73,183.66,4.53815718]
[1760750099413,2.74,183.73,183.66,1.87815718]
[1760750099614,2.74,183.73,183.67,2.66]
[1760750100308,2.74,183.73,183.68,4.898]
[1760750100510,2.74,183.73,183.69,2.66]
[1760750101115,2.74,183.73,183.68,6.77615718]
[1760750101422,2.74,183.73,183.69,2.66]
[1760750101915,2.74,183.73,183.68,6.77615718]
[1760750102317,2.74,183.73,183.69,2.66]
[1760750102616,2.74,183.73,183.68,6.77615718]
[1760750103014,4.8964,183.75,183.69,7.5577]
[1760750103219,7.6164,183.75,183.7,4.62815718]
[1760750103416,7.6164,183.75,183.71,2.75]
[1760750103618,2.72,183.74,183.71,2.75]
[1760750104120,2.72,183.73,183.71,2.75]
[1760750105822,2.72,183.74,183.71,2.75]
[1760750108017,4.8964,183.75,183.71,2.75]
[1760750108222,2.72,183.74,183.71,2.75]
[1760750109022,21.08034587,183.79,183.65,6.7010078]
[1760750109023,2.72,183.73,183.66,2.75]
[1760750110020,7.6169,183.73,183.66,7.6485]
[1760750110425,2.72,183.76,183.65,2.93165496]
[1760750110727,7.79270839,183.76,183.65,2.93165496]
[1760750110922,2.74,183.74,183.63,2.75]
[1760750112224,2.74,183.7,183.64,4.899]
[1760750113227,2.74,183.7,183.63,2.75]
[1760750113721,2.74,183.65,183.6,2.86]
[1760750114427,4.8989,183.66,183.6,2.86]
[1760750114428,2.74,183.64,183.6,2.86]
[1760750114622,4.8991,183.65,183.6,2.86]
[1760750114922,2.74,183.64,183.57,2.86]
[1760750115932,2.74,183.67,183.57,2.86]
[1760750116131,2.74,183.67,183.57,9.5610078]
[1760750116333,2.74,183.67,183.59,2.86]
[1760750117532,2.74,183.67,183.59,7.7603]
[1760750118233,2.74,183.67,183.6,2.86]
[1760750119829,2.93165496,183.66,183.57,2.86]
[1760750120028,2.74,183.65,183.57,2.86]
[1760750120833,2.93165496,183.66,183.54,2.86]
[1760750121035,2.74,183.65,183.54,2.86]
[1760750121934,9.84655301,183.68,183.54,4.9016]
[1760750122137,2.74,183.65,183.55,2.86]
[1760750123026,2.74,183.63,183.55,7.7613]
[1760750123732,2.74,183.61,183.55,2.86]
[1760750124433,7.6393,183.64,183.55,2.86]
[1760750125232,2.74,183.64,183.55,2.86]
[1760750125530,2.74,183.64,183.57,2.86]
[1760750126337,2.74,183.7,183.6,2.86]
[1760750126835,2.74,183.67,183.56,2.86]
[1760750127036,2.74,183.64,183.56,2.86]
[1760750128036,7.6393,183.64,183.56,2.86]
[1760750128235,2.74,183.64,183.56,2.86]
[1760750128632,2.74,183.64,183.53,9.63266276]
[1760750128836,2.74,183.68,183.57,2.86]
[1760750129037,2.74,183.65,183.57,2.86]
[1760750130038,2.74,183.65,183.48,102.73454207]
[1760750130039,2.74,183.61,183.54,7.7618]
[1760750130935,2.74,183.72,183.58,2.86]
[1760750131128,2.74,183.72,183.66,2.93165496]
[1760750131635,2.74,183.72,183.66,5.79165496]
[1760750131834,2.74,183.77,183.66,5.79165496]
[1760750132036,7.6364,183.75,183.66,10.69005496]
[1760750132831,2.74,183.75,183.67,2.86]
[1760750133334,2.74,183.73,183.64,2.93165496]
[1760750133735,2.74,183.73,183.64,5.79165496]
[1760750133932,2.74,183.69,183.6,2.86]
[1760750135941,4.8986,183.67,183.6,2.86]
[1760750136141,7.6386,183.67,183.6,2.86]
[1760750137035,2.74,183.65,183.57,2.86]
[1760750137939,7.6391,183.65,183.57,2.86]
[1760750138133,2.74,183.65,183.57,2.86]
[1760750140039,4.8994,183.64,183.57,2.86]
[1760750141640,2.74,183.65,183.57,2.86]
[1760750142937,4.8994,183.64,183.57,2.86]
[1760750145046,4.8996,183.63,183.57,2.86]
[1760750149055,7.6389,183.65,183.59,2.71]
[1760750149352,2.83,183.7,183.59,2.71]
[1760750150452,7.7288,183.66,183.59,2.71]
[1760750159062,4.8991,183.65,183.59,2.71]
[1760750162070,4.8991,183.65,183.59,7.6104]
[1760750165168,2.83,183.66,183.61,7.83145496]
[1760750165567,2.83,183.66,183.62,2.86]
[1760750165773,2.83,183.66,183.61,7.83145496]
[1760750166171,2.83,183.66,183.62,2.86]
[1760750166379,2.83,183.66,183.61,7.83145496]
[1760750166569,2.83,183.66,183.62,2.86]
[1760750166765,2.83,183.66,183.61,7.83145496]
[1760750166964,4.8984,183.68,183.62,2.86]
[1760750167172,2.65,183.68,183.62,4.8996]
[1760750167372,2.65,183.68,183.64,1.87748028]
[1760750167568,2.65,183.72,183.64,1.87748028]
[1760750168974,2.65,183.68,183.64,1.87748028]
[1760750169177,2.65,183.68,183.64,4.73748028]
[1760750169470,4.898,183.69,183.64,4.73748028]
[1760750169971,2.65,183.68,183.64,4.73748028]
[1760750170176,2.65,183.68,183.65,2.86]
[1760750170580,7.5474,183.71,183.65,2.86]
[1760750170880,2.65,183.75,183.69,2.83]
[1760750171574,2.65,183.75,183.7,1.87748028]
[1760750171779,21.30822014,183.79,183.7,1.87748028]
[1760750171780,2.65,183.77,183.7,1.87748028]
[1760750172981,7.5458,183.77,183.7,1.87748028]
[1760750174075,7.5458,183.77,183.7,4.70748028]
[1760750175779,4.8958,183.77,183.72,1.87748028]
[1760750175982,7.5451,183.8,183.74,1.87748028]
[1760750176184,2.65,183.8,183.74,1.87748028]
[1760750177282,7.5448,183.81,183.74,1.87748028]
[1760750178290,67.21308059,183.83,183.76,1.87748028]
[1760750179184,67.21308059,183.83,183.78,1.87748028]
[1760750179382,67.21308059,183.83,183.79,2.83]
[1760750179579,67.21308059,183.83,183.78,1.87748028]
[1760750179790,67.21308059,183.83,183.79,2.83]
[1760750179988,67.21308059,183.83,183.78,1.87748028]
[1760750180193,2.65,183.85,183.79,2.83]
[1760750182294,2.65,183.85,183.8,1.87748028]
[1760750182496,4.8935,183.86,183.81,2.83]
[1760750182690,4.8935,183.86,183.8,1.87748028]
[1760750182890,7.5428,183.88,183.81,2.83]
[1760750183088,4.52748028,183.88,183.81,2.83]
[1760750183290,2.65,183.87,183.79,2.83]
[1760750184094,4.8935,183.86,183.79,2.83]
[1760750187792,1.87748028,183.84,183.76,2.83]
[1760750188096,9.784,183.92,183.59,76.2301]
[1760750188097,2.65,183.81,183.74,1.87748028]
[1760750188997,2.65,183.81,183.73,2.83]
[1760750189198,1.87748028,183.8,183.73,2.83]
[1760750189392,2.65,183.79,183.73,2.83]
[1760750190898,4.8957,183.78,183.73,2.83]
[1760750191094,2.65,183.77,183.71,1.87748028]
[1760750191796,2.65,183.77,183.7,2.83]
[1760750192098,1.87748028,183.76,183.7,2.83]
[1760750192297,2.65,183.77,183.7,2.83]
[1760750193192,4.8961,183.76,183.7,2.83]
[1760750193792,2.65,183.75,183.7,2.83]
[1760750193994,7.5461,183.76,183.7,2.83]
[1760750197101,9.42358028,183.76,183.7,2.83]
[1760750198499,9.42358028,183.76,183.68,4.898]
[1760750198695,2.65,183.75,183.68,4.898]
[1760750200302,4.8965,183.74,183.68,4.898]
[1760750201609,1.87748028,183.79,183.71,2.68]
[1760750201794,2.87,183.78,183.71,4.55748028]
[1760750203199,4.8959,183.77,183.71,4.55748028]
[1760750204507,2.87,183.78,183.71,4.55748028]
[1760750204508,2.87,183.78,183.71,1.87748028]
[1760750204704,2.87,183.78,183.72,2.68]
[1760750205605,2.87,183.78,183.72,7.5769]
[1760750205807,4.74748028,183.78,183.72,7.5769]
[1760750207104,2.87,183.77,183.7,6.77498028]
[1760750207998,2.87,183.77,183.69,2.68]
[1760750207999,4.74748028,183.76,183.69,2.68]
[1760750209105,4.8964,183.75,183.69,2.68]
[1760750209608,2.87,183.74,183.69,2.68]
[1760750209804,4.8964,183.75,183.69,2.68]
[1760750210111,2.87,183.74,183.69,2.68]
[1760750210307,2.87,183.73,183.69,2.68]
[1760750210698,2.87,183.72,183.69,2.68]
[1760750211315,7.7666,183.74,183.68,9.45548028]
[1760750213112,7.7666,183.74,183.65,14.94]
[1760750213113,7.7673,183.72,183.65,24.39618028]
[1760750214503,7.7673,183.72,183.66,4.8985]
[1760750216113,7.7673,183.72,183.67,2.68]
[1760750216511,7.7673,183.72,183.68,2.68]
[1760750216712,7.7673,183.72,183.66,4.8985]
[1760750216914,7.7673,183.72,183.66,7.5785]
[1760750217414,1.87748028,183.77,183.69,1.87748028]
[1760750217615,4.74748028,183.77,183.7,2.68]
[1760750218706,2.87,183.74,183.67,7.5782]
[1760750218910,4.74748028,183.73,183.67,7.5782]
[1760750219112,11.42350056,183.83,183.62,6.7010078]
[1760750219113,4.74748028,183.71,183.63,2.68]
[1760750219822,4.8977,183.7,183.63,7.5792]
[1760750220413,4.8977,183.7,183.64,4.899]
[1760750222220,4.8977,183.7,183.65,2.68]
[1760750222616,4.8977,183.7,183.64,4.899]
[1760750222821,7.7677,183.7,183.65,2.68]
[1760750223125,7.7677,183.7,183.66,2.68]
[1760750223426,2.87,183.69,183.66,2.68]
[1760750224929,2.76,183.71,183.66,4.8986]
[1760750225123,2.76,183.71,183.68,2.89]
[1760750225923,4.63748028,183.73,183.67,2.89]
[1760750227425,2.76,183.73,183.67,2.89]
[1760750228431,7.6569,183.73,183.67,2.89]
[1760750229436,4.8964,183.75,183.69,2.89]
[1760750229935,7.6564,183.75,183.69,2.89]
[1760750232139,2.8,183.73,183.68,4.8979]
[1760750232339,4.8966,183.74,183.68,4.8979]
[1760750232532,2.8,183.72,183.68,7.5779]
[1760750232929,2.8,183.73,183.68,7.5779]
[1760750233134,4.8966,183.74,183.68,7.5779]
[1760750233334,2.8,183.72,183.68,7.5779]
[1760750233738,2.8,183.72,183.69,2.68]
[1760750237744,2.8,183.75,183.69,2.68]
[1760750238336,4.8955,183.78,183.67,6.7010078]
[1760750238542,2.8,183.77,183.68,2.68]
[1760750238744,2.8,183.77,183.67,6.7010078]
[1760750238745,2.8,183.76,183.67,6.7010078]
[1760750239049,2.8,183.76,183.65,2.68]
[1760750239238,2.93264872,183.74,183.65,2.68]
[1760750239445,2.93264872,183.74,183.62,10.06075537]
[1760750239446,2.8,183.72,183.62,2.68]
[1760750240951,4.8976,183.7,183.63,4.8993]
[1760750241152,7.6976,183.7,183.63,4.8993]
[1760750242955,7.6976,183.7,183.64,2.68]
[1760750243252,2.8,183.68,183.64,2.68]
[1760750245348,2.8,183.68,183.65,2.68]
[1760750246153,2.8,183.69,183.64,7.579]
[1760750246352,2.8,183.69,183.64,4.899]
[1760750246554,2.8,183.69,183.65,2.68]
[1760750248352,7.6971,183.72,183.65,7.5787]
[1760750248657,4.15680967,183.71,183.65,7.5787]
[1760750248856,7.6971,183.72,183.65,7.5787]
[1760750249054,2.8,183.7,183.65,7.5787]
[1760750249258,4.8971,183.72,183.65,7.5787]
[1760750249453,11.85448472,183.71,183.65,7.5787]
[1760750249658,7.6974,183.71,183.65,7.5787]
[1760750249854,2.93264872,183.74,183.63,4.8993]
[1760750250062,4.15708511,183.73,183.63,4.8993]
[1760750250258,4.15708511,183.72,183.63,4.8993]
[1760750250454,2.8,183.7,183.63,4.8993]
[1760750250961,4.898,183.69,183.63,4.8993]
[1760750251956,2.8,183.7,183.64,4.899]
[1760750252157,2.8,183.7,183.63,2.68]
[1760750253058,2.8,183.69,183.66,2.68]
[1760750253662,2.8,183.7,183.66,2.68]
[1760750253861,4.8974,183.71,183.66,2.68]
[1760750254063,2.8,183.69,183.66,2.68]
[1760750255253,4.8974,183.71,183.66,2.68]
[1760750255454,2.8,183.69,183.66,2.68]
[1760750256061,4.8974,183.71,183.66,2.68]
[1760750256261,2.8,183.69,183.66,2.68]
[1760750259867,4.8969,183.73,183.66,4.8985]
[1760750260061,6.95796524,183.72,183.66,7.5785]
[1760750260260,4.15796524,183.71,183.66,7.5785]
[1760750260460,2.8,183.72,183.66,7.5785]
[1760750260656,6.95795083,183.71,183.67,2.68]
[1760750260963,2.8,183.71,183.67,2.89]
[1760750261770,2.74,183.72,183.67,2.89]
[1760750261965,6.89800219,183.71,183.67,2.89]
[1760750262165,2.74,183.72,183.67,2.89]
[1760750262360,6.89798366,183.71,183.67,2.89]
[1760750262565,2.74,183.71,183.67,2.89]
[1760750262864,4.8969,183.73,183.67,2.89]
[1760750263064,2.74,183.71,183.67,2.89]
[1760750263264,2.74,183.72,183.67,2.89]
[1760750263465,2.74,183.69,183.67,2.89]
[1760750265664,2.74,183.72,183.67,2.89]
[1760750265967,2.74,183.71,183.69,2.89]
[1760750266167,2.74,183.74,183.67,4.8982]
[1760750266370,2.74,183.72,183.67,4.8982]
[1760750266665,2.93264872,183.76,183.67,4.8982]
[1760750266871,2.74,183.74,183.67,4.8982]
[1760750267167,6.89793099,183.73,183.66,2.89]
[1760750267368,2.74,183.73,183.66,2.89]
[1760750268071,2.74,183.73,183.7,2.89]
[1760750268464,4.896,183.76,183.69,4.8977]
[1760750268659,4.15777453,183.75,183.7,2.89]
[1760750268860,7.636,183.76,183.6,12.73314872]
[1760750268861,2.74,183.76,183.68,2.93264872]
[1760750269066,5.08556085,183.79,183.69,2.89]
[1760750269067,2.74,183.79,183.69,2.89]
[1760750269265,4.16098651,183.78,183.69,2.89]
[1760750269466,6.90098651,183.77,183.69,2.89]
[1760750269668,4.16098651,183.76,183.69,2.89]
[1760750269970,2.74,183.78,183.72,4.8968]
[1760750270170,2.74,183.76,183.72,7.7868]
[1760750270564,2.74,183.76,183.73,2.89]
[1760750271069,9.98026085,183.81,183.74,4.8963]
[1760750271272,6.89897395,183.8,183.74,4.8963]
[1760750271474,2.74,183.78,183.74,7.7863]
[1760750271672,4.15897395,183.77,183.74,4.8963]
[1760750271973,2.74,183.78,183.75,2.89]
[1760750272177,4.15804959,183.77,183.75,2.89]
[1760750272378,2.74,183.78,183.75,2.89]
[1760750272575,2.74,183.81,183.76,2.89]
[1760750272772,6.89670956,183.8,183.76,2.89]
[1760750272968,4.15670956,183.79,183.76,4.8958]
[1760750273171,2.74,183.8,183.77,2.89]
[1760750273372,2.74,183.84,183.72,2.89]
[1760750273673,4.15440084,183.83,183.72,2.89]
[1760750273878,2.74,183.84,183.72,2.89]
[1760750273879,4.15440084,183.82,183.72,2.89]
[1760750274079,2.74,183.84,183.72,2.89]
[1760750274371,4.13841325,183.83,183.78,2.89]
[1760750274578,4.13841325,183.83,183.74,2.93264872]
[1760750274579,2.74,183.87,183.81,2.89]
[1760750274774,2.74,183.85,183.8,2.93264872]
[1760750274979,2.74,183.85,183.79,2.89]
[1760750275574,2.74,183.85,183.79,7.7851]
[1760750276581,6.8704257,183.85,183.79,7.7851]
[1760750276776,4.13062132,183.84,183.77,7.82824872]
[1760750276978,2.74,183.87,183.77,7.82824872]
[1760750277178,2.74,183.85,183.77,7.82824872]
[1760750277377,2.74,183.83,183.77,7.82824872]
[1760750278681,2.74,183.83,183.77,2.93264872]
[1760750278879,2.74,183.83,183.76,2.89]
[1760750279682,4.8931,183.87,183.77,7.82804872]
[1760750279884,6.87077777,183.86,183.78,2.89]
[1760750280188,2.74,183.84,183.78,2.89]
[1760750280389,2.74,183.84,183.78,5.82264872]
[1760750281090,2.74,183.88,183.79,2.89]
[1760750281285,2.74,183.86,183.79,2.89]
[1760750282979,7.6336,183.86,183.79,2.89]
[1760750284187,11.75519724,183.86,183.79,2.89]
[1760750284394,7.6336,183.86,183.79,2.89]
[1760750284785,2.62,183.87,183.75,2.79]
[1760750284987,6.74035969,183.87,183.75,2.79]
[1760750285488,2.62,183.81,183.74,7.82904872]
[1760750285690,2.62,183.84,183.74,2.93264872]
[1760750285889,2.62,183.84,183.75,2.79]
[1760750286085,4.8942,183.83,183.75,2.79]
[1760750286291,2.62,183.82,183.75,2.79]
[1760750286794,7.5145,183.82,183.75,2.79]
[1760750287489,7.5145,183.82,183.75,4.66489998]
[1760750288290,7.5145,183.82,183.75,2.79]
[1760750288495,7.5145,183.82,183.75,4.66489998]
[1760750288992,4.8948,183.81,183.75,4.66489998]
[1760750290891,2.7,183.81,183.73,1.87489998]
[1760750291196,4.8957,183.78,183.73,1.87489998]
[1760750291395,4.8957,183.78,183.72,2.85]
[1760750291597,2.7,183.79,183.72,2.85]
[1760750291897,7.5953,183.79,183.72,2.85]
[1760750292292,4.8953,183.79,183.74,2.85]
[1760750292493,2.7,183.78,183.74,2.85]
[1760750293088,9.0166682,183.81,183.75,1.87489998]
[1760750293295,4.8948,183.81,183.75,1.87489998]
[1760750296493,7.595,183.8,183.74,4.72489998]
[1760750296886,7.595,183.8,183.74,2.85]
[1760750297188,4.8953,183.79,183.74,1.87489998]
[1760750297497,7.5953,183.79,183.75,2.85]
[1760750298194,4.8947,183.81,183.75,2.85]
[1760750302092,2.7,183.82,183.76,4.72489998]
[1760750302497,2.7,183.82,183.78,4.72489998]
[1760750302695,2.7,183.81,183.78,4.72489998]
[1760750303097,2.7,183.82,183.79,2.85]
[1760750303298,4.8942,183.83,183.79,2.85]
[1760750303499,4.8942,183.83,183.78,1.87489998]
[1760750303699,4.8942,183.83,183.79,2.85]
[1760750303899,7.5942,183.83,183.78,1.87489998]
[1760750304100,7.5942,183.83,183.79,2.85]
[1760750308008,4.8942,183.83,183.78,1.87489998]
[1760750308203,4.8942,183.83,183.77,4.8955]
[1760750308404,2.7,183.81,183.77,7.7455]
[1760750308605,2.7,183.82,183.77,7.7455]
[1760750308806,2.7,183.81,183.77,7.7455]
[1760750309107,2.7,183.82,183.77,7.7455]
[1760750309304,4.8942,183.83,183.77,7.7455]
[1760750309504,2.7,183.81,183.77,7.7455]
[1760750310609,2.7,183.81,183.78,2.85]
[1760750314202,7.5948,183.81,183.78,2.85]
[1760750314411,4.13788346,183.8,183.74,4.72489998]
[1760750314706,1.87489998,183.83,183.74,4.72489998]
[1760750314912,4.13796002,183.82,183.74,4.72489998]
[1760750315119,2.7,183.8,183.74,4.72489998]
[1760750315410,2.7,183.8,183.69,45.24]
[1760750315411,2.7,183.78,183.71,1.87489998]
[1760750315606,4.12853123,183.77,183.71,1.87489998]
[1760750315803,2.7,183.78,183.71,1.87489998]
[1760750316004,4.12912532,183.77,183.71,1.87489998]
[1760750316198,2.7,183.78,183.71,1.87489998]
[1760750316405,2.7,183.78,183.71,4.72489998]
[1760750316610,2.7,183.78,183.72,2.85]
[1760750317111,2.7,183.85,183.78,2.85]
[1760750317312,4.12789104,183.84,183.78,2.85]
[1760750317507,4.12789104,183.83,183.77,4.72489998]
[1760750317702,6.82789104,183.82,183.77,1.87489998]
[1760750317904,2.7,183.82,183.78,2.85]
[1760750322413,4.8942,183.83,183.78,2.85]
[1760750322714,2.82,183.81,183.78,2.85]
[1760750325208,4.8942,183.83,183.78,2.85]
[1760750325414,4.8942,183.83,183.77,1.87489998]
[1760750325614,2.82,183.82,183.77,1.87489998]
[1760750325813,2.82,183.82,183.78,2.74]
[1760750326118,2.82,183.82,183.77,1.87489998]
[1760750326613,2.82,183.82,183.78,2.74]
[1760750328207,2.82,183.81,183.78,2.74]
[1760750329212,2.82,183.85,183.78,2.74]
[1760750329414,4.12416788,183.84,183.78,2.74]
[1760750329710,4.12416788,183.83,183.77,6.77049998]
[1760750329915,2.82,183.84,183.78,2.74]
[1760750330112,4.1240898,183.83,183.78,2.74]
[1760750330316,7.714,183.84,183.78,2.74]
[1760750330519,6.94391363,183.83,183.77,9.51049998]
[1760750330818,2.82,183.83,183.77,9.51049998]
[1760750331420,4.12384102,183.82,183.77,9.51049998]
[1760750331720,2.82,183.83,183.77,9.51049998]
[1760750332922,2.82,183.83,183.77,6.77049998]
[1760750333122,2.82,183.83,183.78,2.74]
[1760750333321,7.714,183.84,183.78,2.74]
[1760750333522,7.714,183.84,183.77,6.77049998]
[1760750333523,4.12331011,183.83,183.77,6.77049998]
[1760750333722,2.82,183.82,183.77,6.77049998]
[1760750334118,2.82,183.82,183.78,2.74]
[1760750334319,2.82,183.82,183.77,6.77049998]
[1760750334615,2.82,183.82,183.78,2.74]
[1760750335217,2.82,183.82,183.77,6.77049998]
[1760750335412,2.82,183.82,183.78,2.74]
[1760750335612,2.82,183.82,183.77,6.77049998]
[1760750335817,2.82,183.82,183.78,2.74]
[1760750336124,2.82,183.82,183.77,6.77049998]
[1760750337213,2.82,183.82,183.78,2.74]
[1760750337815,2.82,183.82,183.77,6.77049998]
[1760750338216,2.82,183.82,183.78,2.74]
[1760750338420,2.82,183.82,183.77,6.77049998]
[1760750338620,2.82,183.83,183.78,2.74]
[1760750338821,2.82,183.81,183.78,2.74]
[1760750340631,2.82,183.81,183.78,7.6353]
[1760750340832,2.82,183.81,183.78,4.8953]
[1760750341026,2.82,183.81,183.78,7.6353]
[1760750342530,7.714,183.84,183.78,7.6353]
[1760750342730,2.82,183.82,183.79,2.74]
[1760750343332,2.82,183.81,183.79,2.74]
[1760750344323,7.6036,183.85,183.77,1.87489998]
[1760750344529,7.6036,183.85,183.81,2.7]
[1760750344530,4.12695028,183.84,183.81,2.7]
[1760750344829,2.71,183.85,183.82,2.7]
[1760750345035,4.12669291,183.84,183.82,2.7]
[1760750345333,2.71,183.85,183.82,2.7]
[1760750345533,4.12663355,183.84,183.82,2.7]
[1760750345733,2.71,183.85,183.82,2.7]
[1760750346035,4.12663355,183.84,183.82,2.7]
[1760750346231,2.71,183.85,183.82,2.7]
[1760750347230,2.71,183.86,183.84,2.7]
[1760750349029,2.71,183.85,183.81,1.87489998]
[1760750349331,2.71,183.88,183.75,2.7]
[1760750349537,4.08035355,183.87,183.76,4.8959]
[1760750349725,2.71,183.85,183.76,4.8959]
[1760750349929,4.08035355,183.86,183.76,4.8959]
[1760750349930,2.71,183.83,183.77,2.7]
[1760750350133,2.71,183.83,183.78,2.7]
[1760750350439,2.71,183.83,183.77,4.8955]
[1760750350632,2.71,183.83,183.78,2.7]
[1760750351033,2.83,183.84,183.78,2.67]
[1760750351333,7.724,183.84,183.78,2.67]
[1760750351536,4.08057145,183.83,183.78,2.67]
[1760750351737,2.83,183.81,183.75,4.8961]
[1760750354141,7.7248,183.81,183.75,4.8961]
[1760750354335,2.83,183.8,183.75,4.8961]
[1760750354536,2.83,183.78,183.7,2.67]
[1760750354741,2.83,183.76,183.7,2.67]
[1760750355944,7.7261,183.76,183.7,2.67]
[1760750357246,2.83,183.74,183.7,2.67]
[1760750357446,4.8964,183.75,183.7,2.67]
[1760750357643,2.83,183.74,183.7,2.67]
[1760750357843,4.8964,183.75,183.7,2.67]
[1760750358048,2.83,183.74,183.7,2.67]
[1760750358245,4.8964,183.75,183.7,2.67]
[1760750358448,2.83,183.74,183.7,2.67]
[1760750358645,4.8964,183.75,183.7,2.67]
[1760750358945,2.83,183.74,183.7,2.67]
[1760750359751,4.8964,183.75,183.7,2.67]
[1760750359956,2.83,183.73,183.7,2.67]
[1760750360451,2.83,183.74,183.7,2.67]
[1760750360645,2.83,183.73,183.7,2.67]
[1760750360956,4.8964,183.75,183.69,2.67]
[1760750364559,2.83,183.76,183.7,2.67]
[1760750364757,5.75801342,183.79,183.7,2.67]
[1760750365849,7.7252,183.79,183.68,2.67]
[1760750366253,2.83,183.79,183.68,2.67]
[1760750366560,2.83,183.79,183.73,7.5666]
[1760750368354,2.83,183.79,183.73,2.67]
[1760750369954,4.8956,183.78,183.73,2.67]
[1760750370158,2.83,183.77,183.73,2.67]
[1760750370360,2.83,183.77,183.71,4.8972]
[1760750370958,2.83,183.77,183.72,2.67]
[1760750371164,2.83,183.77,183.71,4.8972]
[1760750372063,2.83,183.77,183.72,2.67]
[1760750372459,4.8956,183.78,183.71,4.8972]
[1760750372665,2.83,183.76,183.73,2.67]
[1760750373066,2.83,183.76,183.72,4.8969]
[1760750373268,2.83,183.76,183.73,2.67]
[1760750374365,2.83,183.77,183.71,2.67]
[1760750375973,2.83,183.77,183.71,7.5671]
[1760750376173,2.83,183.77,183.68,2.67]
[1760750376370,7.725,183.8,183.68,2.67]
[1760750376569,7.725,183.8,183.74,2.67]
[1760750377166,2.83,183.8,183.71,2.67]
[1760750377373,5.08556085,183.87,183.71,2.67]
[1760750377374,2.83,183.83,183.71,2.67]
[1760750377574,2.83,183.83,183.7,2.92801342]
[1760750377575,2.83,183.83,183.78,2.67]
[1760750377762,2.83,183.83,183.74,2.67]
[1760750378566,2.83,183.86,183.74,2.67]
[1760750378767,11.79126114,183.86,183.79,4.895]
[1760750379072,7.7234,183.86,183.77,2.67]
[1760750379268,2.83,183.86,183.77,2.67]
[1760750379674,2.83,183.86,183.82,2.67]